bitfinex-derivatives/quotes_SOLF0:USTF0_20240905
["timestamp","ask_amount","ask_price","bid_price","bid_amount"]
[1725559481121,0.29114981,130.52,130.45,29.45]
[1725559481427,0.05862777,130.5,130.47,0.05707369]
[1725559481725,3.8325,130.48,130.47,0.05707369]
[1725559482124,4.12398249,130.48,130.47,0.05707369]
[1725559484227,7.98126119,130.48,130.47,0.05707369]
[1725559484732,4.12398249,130.48,130.47,0.05707369]
[1725559485720,3.8325,130.48,130.47,0.05707369]
[1725559485927,4.1239242,130.48,130.47,0.05707369]
[1725559486333,4.1239247,130.48,130.47,0.05707369]
[1725559487641,3.8324,130.49,130.47,0.05707369]
[1725559488135,0.05862777,130.5,130.47,33.41421281]
[1725559488328,0.05862777,130.5,130.49,29.45]
[1725559489931,0.05862777,130.5,130.48,2.6842]
[1725559490134,0.05862777,130.5,130.47,0.05707369]
[1725559491530,0.34982899,130.5,130.47,0.05707369]
[1725559492749,3.89082777,130.5,130.47,0.05707369]
[1725559493129,0.05862777,130.5,130.47,0.05707369]
[1725559493335,3.8325,130.48,130.47,0.05707369]
[1725559494230,4.12386228,130.48,130.47,0.05707369]
[1725559496132,0.29136228,130.48,130.47,0.05707369]
[1725559496332,2.87772777,130.5,130.47,0.05707369]
[1725559496636,0.2913446,130.49,130.47,0.05707369]
[1725559497236,3.8325,130.48,130.47,0.05707369]
[1725559498337,3.8324,130.49,130.47,0.05707369]
[1725559498933,3.8325,130.48,130.47,0.05707369]
[1725559499333,3.8343,130.43,130.38,33.2854]
[1725559499533,4.11236038,130.48,130.38,33.2854]
[1725559499534,3.82102323,130.48,130.38,33.2854]
[1725559499736,1.64105075,130.47,130.38,33.2854]
[1725559499938,3.834,130.43,130.38,33.2854]
[1725559500436,0.04966223,130.42,130.39,0.0491981]
[1725559500642,3.88396223,130.42,130.39,0.0491981]
[1725559500831,0.04966223,130.42,130.39,0.0491981]
[1725559502042,0.04966223,130.42,130.4,3.8348]
[1725559502335,0.04966223,130.42,130.39,3.8841981]
[1725559504145,0.04966223,130.42,130.39,0.0491981]
[1725559504741,0.04966223,130.42,130.4,3.80675997]
[1725559504937,0.04966223,130.42,130.39,0.0491981]
[1725559505343,3.88396223,130.42,130.39,0.0491981]
[1725559505844,3.88396223,130.42,130.39,3.90535659]
[1725559506054,0.04966223,130.42,130.4,29.45]
[1725559506537,3.8335,130.45,130.4,29.45]
[1725559506739,3.84848607,130.49,130.4,29.45]
[1725559507037,0.29160435,130.48,130.4,29.45]
[1725559507231,29.45,130.52,130.4,29.45]
[1725559507232,0.29160435,130.47,130.4,29.45]
[1725559507436,12.9688568,130.51,130.4,29.45]
[1725559507642,3.88469936,130.47,130.44,0.05101728]
[1725559507841,0.05189936,130.47,130.44,0.05101728]
[1725559508937,3.8333,130.46,130.44,0.05101728]
[1725559509340,0.05189936,130.47,130.44,0.05101728]
[1725559509535,3.8334,130.45,130.44,0.05101728]
[1725559511245,4.12514612,130.45,130.44,0.05101728]
[1725559514144,3.8334,130.45,130.44,0.05101728]
[1725559514454,4.12514283,130.45,130.44,0.05101728]
[1725559514843,0.29174283,130.45,130.37,5.2142]
[1725559515043,4.13356692,130.44,130.37,5.2142]
[1725559515256,3.8347,130.41,130.37,5.2142]
[1725559515451,3.8347,130.41,130.37,8.99899976]
[1725559515853,0.05413147,130.4,130.38,0.04869248]
[1725559517370,3.8352,130.39,130.38,0.04869248]
[1725559518678,12.0,130.38,130.18,8.01057334]
[1725559518966,12.0,130.38,130.21,30.8211]
[1725559518967,29.45,130.33,130.21,30.8211]
[1725559519163,29.45,130.33,130.19,2.7344]
[1725559519164,29.45,130.3,130.19,1.366]
[1725559519363,29.45,130.36,130.19,1.366]
[1725559519364,29.45,130.27,130.19,1.366]
[1725559519567,0.29337922,130.26,130.19,1.366]
[1725559519758,0.29337922,130.26,130.16,29.45]
[1725559519759,0.05288608,130.24,130.16,29.45]
[1725559519970,4.10332052,130.26,130.14,2.7948]
[1725559519971,0.05821396,130.21,130.15,1.366]
[1725559520159,0.05821396,130.21,130.18,29.45]
[1725559520666,0.05821396,130.21,130.15,30.816]
[1725559521366,3.8413,130.19,130.15,30.816]
[1725559521666,0.05784958,130.18,130.15,1.366]
[1725559521863,3.8421,130.16,130.14,1.4264]
[1725559522070,3.8421,130.16,130.13,3.8003493]
[1725559522270,0.05096537,130.18,130.11,35.43]
[1725559522465,0.05617799,130.16,130.12,3.86161249]
[1725559522671,0.05617799,130.16,130.08,35.43]
[1725559522969,3.8432,130.12,130.08,35.43]
[1725559523266,0.05306439,130.11,130.08,35.43]
[1725559523468,3.89656439,130.11,130.08,35.43]
[1725559523667,0.05306439,130.11,130.08,35.43]
[1725559523875,0.05306439,130.11,130.07,7.94734272]
[1725559524067,0.29408294,130.18,130.08,35.43]
[1725559524268,0.29408294,130.18,130.1,35.43]
[1725559524466,3.8434,130.12,130.1,35.43]
[1725559524666,1.3859,130.2,130.1,35.43]
[1725559524968,0.29400949,130.19,130.1,35.43]
[1725559525174,0.05725419,130.16,130.14,0.05404101]
[1725559525376,3.8422,130.15,130.14,0.05404101]
[1725559527383,4.1363076,130.15,130.14,0.05404101]
[1725559528272,3.8422,130.15,130.14,0.05404101]
[1725559530678,38.1952,130.2,130.07,5.09934272]
[1725559530679,3.8436,130.11,130.07,5.09934272]
[1725559530882,3.8436,130.11,130.07,1.3238]
[1725559531079,38.1952,130.2,130.08,35.43]
[1725559531280,3.8424,130.15,130.09,3.8438]
[1725559531473,3.8424,130.15,130.1,3.75422035]
[1725559531668,0.05613783,130.14,130.08,35.43]
[1725559531875,1.3859,130.2,130.1,35.43]
[1725559532181,1.319,130.21,130.13,35.43]
[1725559532384,0.2937826,130.2,130.13,35.43]
[1725559532973,0.05791591,130.18,130.15,0.05068816]
[1725559534782,0.05791591,130.18,130.15,3.89288816]
[1725559534972,0.05791591,130.18,130.15,39.32288816]
[1725559535175,0.05791591,130.18,130.15,35.48068816]
[1725559535571,3.89931591,130.18,130.15,35.48068816]
[1725559536176,3.89931591,130.18,130.15,39.32288816]
[1725559537181,0.05791591,130.18,130.15,0.05068816]
[1725559537688,3.8418,130.17,130.15,0.05068816]
[1725559538274,3.842,130.16,130.15,0.05068816]
[1725559539185,0.05791591,130.18,130.15,0.05068816]
[1725559539778,3.8418,130.17,130.15,0.05068816]
[1725559540578,3.842,130.16,130.15,0.05068816]
[1725559541681,3.8418,130.17,130.15,0.05068816]
[1725559542186,0.05791591,130.18,130.15,0.05068816]
[1725559542387,3.89941591,130.18,130.15,0.05068816]
[1725559542578,0.05791591,130.18,130.15,0.05068816]
[1725559543088,0.05791591,130.18,130.16,3.8419]
[1725559543284,0.05791591,130.18,130.15,0.05068816]
[1725559544181,3.8419,130.17,130.15,0.05068816]
[1725559544498,0.05791591,130.18,130.15,0.05068816]
[1725559546282,3.8417,130.17,130.15,0.05068816]
[1725559546485,0.05791591,130.18,130.15,0.05068816]
[1725559546886,0.05791591,130.18,130.16,29.53]
[1725559547093,0.05791591,130.18,130.17,3.8417]
[1725559551392,0.05791591,130.18,130.15,0.05068816]
[1725559553400,0.05791591,130.18,130.17,3.8417]
[1725559554593,3.89931591,130.18,130.16,3.8418]
[1725559555597,3.842,130.16,130.15,0.05068816]
[1725559555794,0.05791591,130.18,130.15,0.05068816]
[1725559556202,3.8419,130.17,130.15,0.05068816]
[1725559556796,3.842,130.16,130.15,0.05068816]
[1725559557494,3.8418,130.17,130.15,3.89288816]
[1725559558299,3.89941591,130.18,130.15,3.89288816]
[1725559559301,0.05791591,130.18,130.16,3.8418]
[1725559560303,0.05791591,130.18,130.17,3.8417]
[1725559560694,2.6999,130.24,130.16,29.53]
[1725559560901,3.8401,130.23,130.19,3.8408]
[1725559561301,29.53,130.29,130.2,29.53]
[1725559561503,0.29365495,130.28,130.2,29.53]
[1725559561696,0.04863485,130.25,130.23,0.05735358]
[1725559561904,0.05730547,130.25,130.23,0.05735358]
[1725559562101,2.742,130.3,130.24,29.53]
[1725559562102,1.4014,130.3,130.24,29.53]
[1725559562602,1.4014,130.3,130.2,29.53]
[1725559562806,0.2934959,130.29,130.21,3.9248549]
[1725559563010,3.89608884,130.26,130.24,0.05023898]
[1725559563519,0.05688884,130.26,130.24,0.05023898]
[1725559563701,3.8393,130.25,130.24,0.05023898]
[1725559564399,3.89598884,130.26,130.24,0.05023898]
[1725559564608,0.05688884,130.26,130.24,0.05023898]
[1725559565204,0.05688884,130.26,130.25,3.8393]
[1725559565505,1.3406,130.33,130.25,3.8393]
[1725559565506,1.3406,130.33,130.25,5.36739221]
[1725559565702,1.3406,130.33,130.25,1.4458]
[1725559565902,1.4474,130.35,130.26,29.53]
[1725559566100,1.4474,130.35,130.28,3.8383]
[1725559566101,4.1297956,130.34,130.28,3.8383]
[1725559566411,0.053276,130.32,130.3,0.04871449]
[1725559568410,3.8615122,130.38,130.3,0.04871449]
[1725559568631,0.29273491,130.37,130.35,29.53]
[1725559568814,29.53,130.43,130.31,29.53]
[1725559569100,29.53,130.41,130.29,29.53]
[1725559569306,3.8363,130.36,130.29,29.53]
[1725559569501,0.05564047,130.34,130.32,3.8372]
[1725559569715,0.05818714,130.34,130.32,3.88672264]
[1725559572208,0.05818714,130.34,130.32,0.04952264]
[1725559572800,3.89498714,130.34,130.32,0.04952264]
[1725559573004,0.05818714,130.34,130.32,0.04952264]
[1725559573306,0.05818714,130.34,130.33,3.8369]
[1725559574808,0.05818714,130.34,130.32,3.88662264]
[1725559575206,0.05818714,130.34,130.32,0.04952264]
[1725559575616,0.05818714,130.34,130.25,30.9758]
[1725559575911,1.3187,130.34,130.25,29.53]
[1725559576111,1.3187,130.34,130.23,29.53]
[1725559576309,3.8388,130.27,130.23,33.3696]
[1725559576513,3.8388,130.27,130.24,3.81132803]
[1725559576711,3.89696899,130.27,130.24,0.05690346]
[1725559576910,0.05816899,130.27,130.24,3.81331765]
[1725559577112,0.05816899,130.27,130.25,29.53]
[1725559577410,0.05816899,130.27,130.24,0.05690346]
[1725559578014,3.839,130.26,130.24,0.05690346]
[1725559578309,0.05816899,130.27,130.24,0.05690346]
[1725559578516,0.05816899,130.27,130.26,3.839]
[1725559578911,29.53,130.37,130.25,33.30331075]
[1725559579118,3.8372,130.33,130.29,33.368]
[1725559579316,3.85548951,130.37,130.29,33.368]
[1725559580017,0.05205277,130.33,130.3,0.04864371]
[1725559581412,3.8374,130.32,130.3,0.04864371]
[1725559585213,3.8375,130.31,130.3,0.04864371]
[1725559585722,3.8373,130.32,130.3,0.04864371]
[1725559589017,3.8375,130.31,130.3,0.04864371]
[1725559589621,3.8386,130.28,130.25,3.77331075]
[1725559589819,3.8386,130.28,130.23,29.53]
[1725559590123,3.8386,130.28,130.24,3.8394]
[1725559590324,3.8386,130.28,130.25,3.92446733]
[1725559590521,3.89525387,130.28,130.25,3.97627716]
[1725559590716,3.8387,130.27,130.25,0.05180983]
[1725559592029,3.8387,130.27,130.25,3.89110983]
[1725559592422,3.839,130.26,130.25,0.05180983]
[1725559592617,0.05665387,130.28,130.25,0.05180983]
[1725559593026,3.8388,130.27,130.25,0.05180983]
[1725559593231,0.05665387,130.28,130.25,0.05180983]
[1725559593629,3.839,130.26,130.25,0.05180983]
[1725559594925,0.05665387,130.28,130.25,0.05180983]
[1725559595233,0.05665387,130.28,130.25,29.58180983]
[1725559595722,3.89525387,130.28,130.25,29.58180983]
[1725559596130,3.89525387,130.28,130.25,33.42080983]
[1725559597938,3.8387,130.27,130.25,0.05180983]
[1725559598337,3.839,130.26,130.25,0.05180983]
[1725559601041,5.24628861,130.3,130.22,3.84]
[1725559601237,0.29342229,130.29,130.22,3.84]
[1725559601443,3.8395,130.25,130.22,3.84]
[1725559601834,3.8950385,130.25,130.22,3.88929536]
[1725559602034,3.8397,130.24,130.22,0.04929536]
[1725559602239,0.0555385,130.25,130.22,0.04929536]
[1725559602942,3.8396,130.24,130.22,0.04929536]
[1725559603141,0.0555385,130.25,130.22,0.04929536]
[1725559603334,3.8399,130.24,130.22,0.04929536]
[1725559603533,0.0555385,130.25,130.22,0.04929536]
[1725559604045,3.8396,130.24,130.22,0.04929536]
[1725559604245,0.0555385,130.25,130.22,3.88939536]
[1725559604546,3.8950385,130.25,130.22,3.88939536]
[1725559604744,0.0555385,130.25,130.24,3.8396]
[1725559605452,0.0555385,130.25,130.23,33.3698]
[1725559605747,0.0555385,130.25,130.22,0.04929536]
[1725559606343,3.8398,130.24,130.22,0.04929536]
[1725559607439,3.8398,130.24,130.22,3.88939536]
[1725559609342,3.8399,130.23,130.22,0.04929536]
[1725559609537,0.0555385,130.25,130.22,0.04929536]
[1725559610247,3.8398,130.24,130.22,0.04929536]
[1725559610846,0.0555385,130.25,130.23,29.53]
[1725559611050,0.0555385,130.25,130.24,3.75295875]
[1725559611253,0.0555385,130.25,130.24,7.59255875]
[1725559611848,0.0555385,130.25,130.24,3.8396]
[1725559612056,3.8387,130.28,130.26,3.8389]
[1725559613055,3.88773992,130.28,130.26,3.89257649]
[1725559613753,1.3676,130.32,130.26,23.66367649]
[1725559614053,1.3187,130.34,130.28,29.49]
[1725559614251,4.12974837,130.33,130.3,3.8377]
[1725559614456,3.8371,130.33,130.28,29.49]
[1725559614853,0.0549914,130.32,130.29,0.0588858]
[1725559615054,0.0549914,130.32,130.31,29.49]
[1725559615352,1.4006,130.36,130.31,29.49]
[1725559615654,0.29252878,130.35,130.32,3.837]
[1725559616146,1.3265,130.38,130.32,7.76108344]
[1725559616348,0.05102993,130.36,130.34,0.05634935]
[1725559617454,3.8365,130.35,130.34,0.05634935]
[1725559617759,4.12900565,130.35,130.34,0.05634935]
[1725559620143,4.12897842,130.35,130.34,0.05634935]
[1725559620646,0.29247842,130.35,130.27,29.49]
[1725559620848,5.17303846,130.38,130.27,33.42123965]
[1725559620849,0.29247842,130.34,130.27,33.42123965]
[1725559621061,0.29247842,130.33,130.27,29.49]
[1725559621353,3.838,130.3,130.27,33.3286]
[1725559621651,0.05060437,130.3,130.27,29.54019907]
[1725559621867,0.05060437,130.3,130.29,3.838]
[1725559622058,0.05060437,130.3,130.29,7.6879051]
[1725559622355,0.2924876,130.37,130.32,29.49]
[1725559622554,0.2924876,130.37,130.32,33.3271]
[1725559622755,5.17303846,130.38,130.32,33.3271]
[1725559623052,0.29240834,130.37,130.32,33.3271]
[1725559623257,0.05765288,130.36,130.33,0.05888134]
[1725559623657,3.8366,130.35,130.33,0.05888134]
[1725559623853,0.05765288,130.36,130.33,0.05888134]
[1725559624251,3.8366,130.34,130.33,0.05888134]
[1725559624859,0.05765288,130.36,130.33,29.54888134]
[1725559624860,3.8364,130.35,130.33,29.54888134]
[1725559625259,1.4006,130.4,130.34,29.49]
[1725559625556,3.8357,130.38,130.34,33.23423376]
[1725559625759,0.29239471,130.37,130.35,3.8364]
[1725559626060,0.29239471,130.37,130.34,33.23423376]
[1725559626257,0.29239471,130.36,130.34,37.12686425]
[1725559626455,3.88883576,130.37,130.34,33.29046425]
[1725559627258,0.05293576,130.37,130.34,33.29046425]
[1725559627462,0.05293576,130.37,130.36,29.49]
[1725559628260,0.05293576,130.37,130.36,33.3261]
[1725559629058,3.88873576,130.37,130.34,37.12706425]
[1725559629663,3.8361,130.36,130.34,37.12706425]
[1725559629858,0.05293576,130.37,130.34,37.12706425]
[1725559630066,0.05293576,130.37,130.34,0.05623049]
[1725559630253,3.8364,130.35,130.34,0.05623049]
[1725559630463,0.05293576,130.37,130.34,0.05623049]
[1725559631165,3.88873576,130.37,130.34,3.89263049]
[1725559631365,0.05293576,130.37,130.34,3.89263049]
[1725559631866,0.05293576,130.37,130.36,3.8361]
[1725559632665,1.3975,130.41,130.36,29.49]
[1725559633163,5.2323,130.41,130.38,3.8353]
[1725559633364,3.8348,130.41,130.39,29.49]
[1725559633556,3.89003673,130.41,130.39,29.54139595]
[1725559633761,0.05523673,130.41,130.39,33.37659595]
[1725559634063,0.05523673,130.41,130.4,23.56]
[1725559634462,3.88983673,130.41,130.4,23.56]
[1725559634657,3.88983673,130.41,130.39,0.05139595]
[1725559634861,0.05523673,130.41,130.39,0.05139595]
[1725559635267,3.8349,130.4,130.39,0.05139595]
[1725559636867,0.05523673,130.41,130.39,0.05139595]
[1725559637166,0.05523673,130.41,130.39,27.44629595]
[1725559637363,1.3745,130.44,130.39,23.61139595]
[1725559637565,3.8342,130.43,130.41,23.56]
[1725559638069,1.3745,130.44,130.41,23.56]
[1725559638264,1.43285019,130.44,130.39,0.05139595]
[1725559638464,0.29177104,130.43,130.39,0.05139595]
[1725559638658,1.43285019,130.44,130.39,0.05139595]
[1725559639469,0.29176172,130.43,130.39,0.05139595]
[1725559639770,3.8348,130.41,130.39,0.05139595]
[1725559640066,3.89126964,130.41,130.39,0.05139595]
[1725559640268,0.05646964,130.41,130.4,27.3949]
[1725559640475,0.29176172,130.43,130.4,27.44962404]
[1725559640768,0.29176172,130.43,130.4,23.56]
[1725559641169,3.8345,130.42,130.4,23.56]
[1725559641468,0.04937912,130.42,130.4,27.46228382]
[1725559641868,0.29176172,130.43,130.42,23.56]
[1725559642969,0.29176172,130.43,130.4,23.56]
[1725559643383,4.12586172,130.43,130.4,27.42507172]
[1725559643567,0.29176172,130.43,130.41,3.8345]
[1725559644969,0.29176172,130.43,130.42,23.56]
[1725559645575,0.29176172,130.43,130.42,27.3943]
[1725559647377,0.29176172,130.43,130.4,23.56]
[1725559647775,3.8345,130.42,130.4,23.56]
[1725559648275,0.29176172,130.43,130.39,3.88629595]
[1725559648276,3.8349,130.4,130.39,0.05139595]
[1725559650274,3.8362,130.36,130.34,132.34726036]
[1725559650776,3.8362,130.36,130.34,108.78726036]
[1725559651380,3.8943583,130.36,130.34,108.84292793]
[1725559651585,3.8943583,130.36,130.34,112.67952793]
[1725559654776,1.3443,130.4,130.34,112.67952793]
[1725559654777,1.3443,130.4,130.34,132.40292793]
[1725559654976,1.3443,130.4,130.36,23.56]
[1725559655181,1.3443,130.4,130.35,23.56]
[1725559655482,3.836,130.37,130.35,23.56]
[1725559655885,3.88942806,130.37,130.35,23.61723541]
[1725559656278,0.05342806,130.37,130.35,23.61723541]
[1725559656882,3.88932806,130.37,130.35,27.45343541]
[1725559657279,3.8361,130.36,130.35,0.05723541]
[1725559660284,3.8361,130.36,130.32,3.81790784]
[1725559660285,3.8369,130.33,130.32,3.81790784]
[1725559660484,33.9537,130.4,130.29,23.56]
[1725559660485,26.2837,130.4,130.29,23.56]
[1725559660688,3.8378,130.3,130.29,27.48795011]
[1725559660985,23.56,130.38,130.29,27.48795011]
[1725559661186,0.05847575,130.35,130.32,0.05002225]
[1725559661981,3.8369,130.33,130.32,0.05002225]
[1725559662179,3.8369,130.33,130.32,3.8912474]
[1725559662378,3.8369,130.33,130.32,0.05002225]
[1725559662585,3.8368,130.34,130.32,0.05002225]
[1725559662891,3.8368,130.34,130.32,3.90701342]
[1725559663185,3.8369,130.33,130.32,3.90701342]
[1725559665582,3.8369,130.33,130.32,0.05002225]
[1725559665789,0.05847575,130.35,130.28,23.56]
[1725559665982,23.56,130.36,130.28,27.30452118]
[1725559665983,5.26161314,130.34,130.28,27.30452118]
[1725559666185,1.3885,130.34,130.28,27.30452118]
[1725559666384,3.8377,130.31,130.29,3.8381]
[1725559666894,3.89136376,130.31,130.29,3.88858178]
[1725559668187,0.05366376,130.31,130.3,27.3978]
[1725559669798,0.05366376,130.31,130.3,23.56]
[1725559670491,0.05366376,130.31,130.3,27.3978]
[1725559674598,3.8368,130.34,130.32,3.8371]
[1725559674902,3.8368,130.34,130.32,27.3971]
[1725559675702,3.89211995,130.34,130.32,27.4487742]
[1725559677301,0.05531995,130.34,130.32,27.4487742]
[1725559679993,3.89201995,130.34,130.32,0.0516742]
[1725559680193,0.05531995,130.34,130.32,0.0516742]
[1725559680602,3.8369,130.33,130.32,0.0516742]
[1725559681800,3.89211995,130.34,130.32,0.0516742]
[1725559682000,0.05531995,130.34,130.32,23.6116742]
[1725559685402,3.837,130.33,130.31,0.04849699]
[1725559686510,3.837,130.33,130.31,3.88589699]
[1725559686701,3.88648654,130.34,130.31,3.88589699]
[1725559687607,0.04968654,130.34,130.32,23.56]
[1725559688005,0.04968654,130.34,130.33,9.43]
[1725559689007,3.88638654,130.34,130.33,9.43]
[1725559689908,0.04968654,130.34,130.33,9.43]
[1725559690208,0.29232731,130.4,130.33,9.43]
[1725559690405,9.43,130.45,130.39,9.43]
[1725559690612,0.29227989,130.41,130.39,9.43]
[1725559691004,0.29226905,130.4,130.39,9.48798982]
[1725559691612,3.88943517,130.41,130.39,9.48798982]
[1725559693410,3.8349,130.4,130.39,0.05798982]
[1725559694305,4.12709356,130.4,130.39,0.05798982]
[1725559695214,4.12711218,130.4,130.39,0.05798982]
[1725559696414,0.05483517,130.41,130.39,0.05798982]
[1725559696622,0.05483517,130.41,130.39,23.62798982]
[1725559697418,0.05483517,130.41,130.39,27.46298982]
[1725559697819,0.05483517,130.41,130.39,0.05798982]
[1725559698711,3.8349,130.4,130.39,0.05798982]
[1725559699814,4.12707528,130.4,130.39,0.05798982]
[1725559700520,3.8349,130.4,130.39,0.05798982]
[1725559700720,4.12709269,130.4,130.39,0.05798982]
[1725559702612,4.12709269,130.4,130.39,23.62798982]
[1725559702613,0.29219269,130.4,130.39,23.62798982]
[1725559702816,0.05483517,130.41,130.39,23.62798982]
[1725559703014,0.05483517,130.41,130.39,27.46298982]
[1725559703520,0.3469872,130.41,130.39,27.46298982]
[1725559703714,0.05483517,130.41,130.39,27.46298982]
[1725559703919,0.34698534,130.41,130.39,27.46298982]
[1725559704724,4.138,130.46,130.4,23.57]
[1725559705018,0.29212412,130.45,130.4,23.57]
[1725559705212,3.8339,130.44,130.41,3.8346]
[1725559705515,0.29212412,130.43,130.41,3.8346]
[1725559705727,0.3466554,130.43,130.41,3.88315839]
[1725559705924,0.3466554,130.43,130.42,3.8343]
[1725559706518,0.05453128,130.43,130.42,3.8343]
[1725559707424,0.05453128,130.43,130.42,7.6073069]
[1725559707723,7.671,130.54,130.46,3.833]
[1725559707917,0.28210469,130.52,130.47,23.57]
[1725559708120,0.28210469,130.51,130.47,23.57]
[1725559708325,0.28210469,130.5,130.48,27.4024]
[1725559708516,0.28210469,130.49,130.48,27.4024]
[1725559708726,0.02784764,130.5,130.48,27.4023]
[1725559709026,0.28209314,130.49,130.48,27.4023]
[1725559709825,0.30994078,130.5,130.48,27.4023]
[1725559710023,0.28209314,130.49,130.48,27.4023]
[1725559710417,0.30994078,130.5,130.48,27.4023]
[1725559710617,0.28209314,130.49,130.48,27.4023]
[1725559710818,0.30994078,130.5,130.48,27.4023]
[1725559711022,0.28209314,130.49,130.48,27.4023]
[1725559711327,0.30994078,130.5,130.48,27.4023]
[1725559711526,0.28209314,130.49,130.48,27.4023]
[1725559711825,0.30994078,130.5,130.47,0.04844916]
[1725559712024,0.28209314,130.49,130.47,0.04844916]
[1725559712224,0.28209314,130.48,130.47,0.04844916]
[1725559712420,0.28209314,130.48,130.47,3.88124916]
[1725559712823,0.28209314,130.49,130.47,3.88124916]
[1725559713129,0.28209314,130.48,130.47,3.88124916]
[1725559713324,0.28209314,130.49,130.47,3.88124916]
[1725559713522,0.28209314,130.48,130.47,3.88124916]
[1725559713924,0.28209314,130.49,130.47,3.88124916]
[1725559714123,0.28209314,130.48,130.47,3.88124916]
[1725559715726,0.28209314,130.49,130.47,0.04844916]
[1725559716030,3.85994764,130.5,130.48,27.4025]
[1725559716230,0.28205193,130.49,130.48,27.4025]
[1725559716929,0.02784764,130.5,130.49,3.8322]
[1725559717826,0.02784764,130.5,130.48,27.4024]
[1725559719031,0.02784764,130.5,130.49,3.8322]
[1725559719528,0.30989507,130.5,130.49,3.8322]
[1725559720032,0.30989507,130.5,130.47,0.04844916]
[1725559720227,0.28204743,130.49,130.47,0.04844916]
[1725559720531,0.28204743,130.48,130.47,27.45124916]
[1725559720725,0.30989813,130.5,130.47,23.61844916]
[1725559720921,0.28205049,130.49,130.47,23.61844916]
[1725559721127,0.28205049,130.48,130.47,27.45124916]
[1725559721329,0.28205049,130.49,130.47,23.61844916]
[1725559721634,0.02784764,130.5,130.47,23.61844916]
[1725559721828,3.85984764,130.5,130.48,3.8324]
[1725559722425,0.28204962,130.49,130.48,3.8324]
[1725559722628,0.02784764,130.5,130.49,3.8322]
[1725559722830,0.02784764,130.5,130.49,31.14816707]
[1725559723025,0.28204322,130.52,130.51,3.8316]
[1725559723229,30.741,130.66,130.51,23.57]
[1725559723230,4.0514,130.58,130.51,23.57]
[1725559723431,0.28203748,130.57,130.49,3.74596707]
[1725559723638,23.57,130.55,130.47,3.8328]
[1725559723835,0.28203748,130.54,130.45,23.57]
[1725559724036,0.2820544,130.53,130.48,0.05162467]
[1725559724331,3.8325,130.49,130.48,0.05162467]
[1725559724526,4.11455276,130.49,130.48,0.05162467]
[1725559725636,3.833,130.47,130.44,27.4036]
[1725559725833,0.28206098,130.46,130.44,27.4036]
[1725559726041,3.833,130.47,130.43,3.8337]
[1725559726335,0.2820611,130.46,130.43,3.8337]
[1725559726638,0.33368577,130.46,130.43,3.88972978]
[1725559726839,0.33368577,130.46,130.44,3.8337]
[1725559727636,0.33368577,130.46,130.43,3.88982978]
[1725559728736,0.05162467,130.46,130.43,3.88982978]
[1725559728937,0.33368378,130.46,130.44,3.8336]
[1725559729135,0.05162467,130.46,130.44,3.8336]
[1725559731539,0.05162467,130.46,130.43,0.05602978]
[1725559732133,4.51028372,130.46,130.43,0.05602978]
[1725559732443,0.28205905,130.45,130.39,3.80070209]
[1725559733034,3.8344,130.42,130.39,3.80070209]
[1725559733439,3.88649185,130.42,130.39,3.85231614]
[1725559733641,3.8346,130.41,130.39,3.85231614]
[1725559733845,0.05209185,130.42,130.39,3.85231614]
[1725559734137,0.05209185,130.42,130.39,0.05161405]
[1725559734138,3.93548743,130.42,130.39,0.05161405]
[1725559734339,3.8349,130.4,130.39,0.05161405]
[1725559735836,0.05209185,130.42,130.39,23.62161405]
[1725559736339,0.05209185,130.42,130.41,3.8346]
[1725559737041,0.05209185,130.42,130.4,3.8347]
[1725559737439,0.05209185,130.42,130.39,0.05161405]
[1725559737640,0.3342027,130.42,130.39,0.05161405]
[1725559737940,23.57,130.4,130.15,11.5261]
[1725559738138,0.3342027,130.42,130.26,23.57]
[1725559738139,2.7626,130.39,130.26,23.57]
[1725559738342,3.8373,130.32,130.26,27.47697131]
[1725559738541,23.57,130.34,130.26,3.74892789]
[1725559738744,1.3267,130.31,130.24,23.57]
[1725559738943,1.3267,130.31,130.26,0.05902031]
[1725559738944,0.05131062,130.29,130.26,0.05902031]
[1725559739543,3.8386,130.28,130.26,0.05902031]
[1725559740443,3.88951062,130.29,130.26,0.05902031]
[1725559740647,0.05131062,130.29,130.26,0.05902031]
[1725559741746,0.05131062,130.29,130.27,29.52]